lending/lending_fUSD_20240710
["ID","MTS","AMOUNT","RATE_DAILY","PERIOD"]
[331662704,1720608661754,-500.0,0.00013917,2]
[331662705,1720608661766,-500.0,0.00013917,2]
[331662706,1720608661775,-745.25,0.00013917,2]
[331662707,1720608661784,-176.72670626,0.00013917,2]
[331662708,1720608663269,-163.67245269,0.00013917,2]
[331662709,1720608663279,-398.0376981,0.00013917,2]
[331662710,1720608663287,-500.0,0.00013917,2]
[331662711,1720608663300,-500.0,0.00013917,2]
[331662712,1720608663310,-500.0,0.00013917,2]
[331662713,1720608663319,-500.0,0.00013917,2]
[331662714,1720608663329,-710.99,0.00013917,2]
[331662715,1720608663338,-500.0,0.00013917,2]
[331662716,1720608663347,-500.0,0.00013917,2]
[331662717,1720608663357,-500.0,0.00013917,2]
[331662718,1720608663367,-514.45,0.00013917,2]
[331662719,1720608663377,-714.31,0.00013917,2]
[331662720,1720608663386,-775.15,0.00013917,2]
[331662721,1720608663396,-503.21,0.00013917,2]
[331662722,1720608663406,-500.0,0.00013917,2]
[331662723,1720608663416,-500.0,0.00013917,2]
[331662724,1720608663426,-562.51,0.00013917,2]
[331662725,1720608663436,-500.0,0.00013917,2]
[331662726,1720608663446,-500.0,0.00013917,2]
[331662727,1720608663456,-180.2184476,0.00013917,2]
[331662728,1720608663468,-319.7815524,0.00013917,2]
[331662729,1720608663478,-18.93607151,0.00013917,2]
[331662730,1720608663491,-481.06392849,0.00013917,2]
[331662731,1720608663502,-806.89,0.00013917,2]
[331662732,1720608663513,-219.33607151,0.00013917,2]
[331662733,1720608663525,-459.47392849,0.00013917,2]
[331662734,1720608663534,-268.74853472,0.00013917,2]
[331662736,1720608663769,-3069.89999997,0.00013598,2]
[331662740,1720608684504,117309.04389,6.762e-05,7]
[331662758,1720608746779,247.19199075,6.762e-05,2]
[331662759,1720608746807,382777.23779295,6.762e-05,2]
[331662761,1720608754155,150.0,0.0001,2]
[331662762,1720608754178,5.11219149,0.0001,2]
[331662763,1720608768349,1063.93914076,8.196e-05,2]
[331662768,1720608887259,150.0,9.934e-05,2]
[331662769,1720608887281,150.0,9.934e-05,2]
[331662770,1720608887302,131.26485321,9.934e-05,2]
[331662771,1720608901864,354.69812294,0.0001,2]
[331662773,1720608911328,300.0,9.934e-05,2]
[331662774,1720609064642,377.66,0.00010825,2]
[331662779,1720609296014,150.0,0.00011199,2]
[331662780,1720609296037,150.0,0.00011199,2]
[331662781,1720609296059,150.0,0.00011199,2]
[331662782,1720609296081,150.0,0.00011199,2]
[331662783,1720609296103,150.0,0.00011199,2]
[331662784,1720609296125,150.0,0.00011199,2]
[331662785,1720609296146,262.05247685,0.00011199,2]
[331662786,1720609296171,8083.75923022,0.00011199,2]
[331662788,1720609370251,1050.0,0.00011199,2]
[331662797,1720609681174,156.38710992,0.00011199,2]
[331662798,1720609699869,358.77,0.00010953,2]
[331662800,1720609791505,1000.0,0.00027,120]
[331662810,1720609833381,-169.13,0.00012302,2]
[331662811,1720609833391,-128.1447862,0.00012314,2]
[331662812,1720609833404,-26.8552138,0.00012314,2]
[331662814,1720609833413,-231.91330229,0.0001232,2]
[331662816,1720609833426,-268.08669771,0.0001232,2]
[331662818,1720609833435,-250.0,0.00012326,2]
[331662820,1720609833445,-399.57,0.00012382,2]
[331662822,1720609833454,-178.96808874,0.00012399,2]
[331662825,1720609833466,-685.05424735,0.00012399,2]
[331662827,1720609833478,-586.42800353,0.00012399,2]
[331662829,1720609833490,-48.55966038,0.00012399,2]
[331662831,1720609833500,-1286.47761185,0.00012444,2]
[331662832,1720609833509,-200.0,0.00012444,2]
[331662833,1720609833519,-244.0,0.00012532,2]
[331662834,1720609833528,-4539.88108971,0.00012533,2]
[331662835,1720609833540,-7576.47257359,0.00012533,2]
[331662836,1720609833552,-3429.3963367,0.00012533,2]
[331662837,1720609833562,-3496.11,0.00012585,2]
[331662838,1720609833571,-3494.16,0.00012585,2]
[331662839,1720609833580,-2546.04,0.00012585,2]
[331662840,1720609833590,-222.73,0.00012585,2]
[331662841,1720609833600,-3035.95,0.00012585,2]
[331662842,1720609833609,-150.0,0.000126,2]
[331662843,1720609833619,-499.99,0.00012743,2]
[331662844,1720609833628,-168.43,0.00012785,2]
[331662845,1720609833638,-8423.37,0.00012808,2]
[331662846,1720609833648,-169.55,0.00012847,2]
[331662847,1720609833657,-1295.36,0.00012871,2]
[331662848,1720609833667,-188.2,0.00012871,2]
[331662849,1720609833677,-5590.67,0.00012871,2]
[331662850,1720609833685,-250.0,0.00012871,2]
[331662851,1720609833695,-1000.0,0.00012871,2]
[331662852,1720609833704,-167.7,0.00013034,2]
[331662853,1720609833713,-600.0,0.00013035,2]
[331662854,1720609833723,-1271.86854711,0.00013128,2]
[331662855,1720609833733,-523.7195419,0.00013128,2]
[331662856,1720609833743,-462.24258694,0.00013128,2]
[331662857,1720609833754,-831.0,0.0001321,2]
[331662858,1720609833763,-358.77,0.00013217,2]
[331662859,1720609833773,-1041.44285239,0.00013276,2]
[331662860,1720609833783,-1000.0,0.00013397,2]
[331662861,1720609833797,-2450.5478,0.00013398,2]
[331662862,1720609833807,-1051.57824751,0.00013398,2]
[331662863,1720609834135,-915.79411061,0.00013398,2]
[331662864,1720609834149,-484.32,0.00013398,2]
[331662865,1720609834161,-503.022718,0.00013398,2]
[331662866,1720609834173,-331.62372388,0.00013398,2]
[331662867,1720609834183,-177.51,0.00013419,2]
[331662868,1720609834192,-186.8385116,0.00013472,2]
[331662869,1720609834204,-526.787877,0.00013511,2]
[331662870,1720609834214,-180.666707,0.00013511,2]
[331662871,1720609834224,-172.362248,0.00013511,2]
[331662872,1720609834234,-428.16493064,0.00013511,2]
[331662873,1720609834245,-721.80055536,0.00013511,2]
[331662874,1720609834255,-170.29919,0.00013511,2]
[331662875,1720609834265,-632.722724,0.00013511,2]
[331662876,1720609834274,-200.1103706,0.00013516,2]
[331662877,1720609834284,-600.0,0.00013578,2]
[331662878,1720609834294,-2489.01,0.00013652,2]
[331662879,1720609834303,-1302.90996263,0.00013653,2]
[331662880,1720609834316,-863.503638,0.00013653,2]
[331662881,1720609834327,-2007.09919937,0.00013653,2]
[331662882,1720609834336,-353.5,0.00013653,2]
[331662883,1720609834346,-171.29269954,0.00013653,2]
[331662884,1720609834355,-482.10707866,0.00013656,2]
[331662885,1720609834365,-526.787877,0.0001368,2]
[331662886,1720609834375,-1149.965486,0.0001368,2]
[331662887,1720609834384,-632.722724,0.0001368,2]
[331662888,1720609834394,-500.0,0.00013698,2]
[331662889,1720609834405,-611.67,0.00013698,2]
[331662890,1720609834414,-500.0,0.00013698,2]
[331662891,1720609834424,-500.0,0.00013698,2]
[331662892,1720609834434,-242.18909265,0.00013698,2]
[331662893,1720609834447,-257.81090735,0.00013698,2]
[331662894,1720609834456,-623.38,0.00013698,2]
[331662895,1720609834466,-500.0,0.00013698,2]
[331662896,1720609834476,-500.0,0.00013698,2]
[331662897,1720609834486,-500.0,0.00013698,2]
[331662898,1720609834495,-500.0,0.00013698,2]
[331662899,1720609834505,-500.0,0.00013698,2]
[331662900,1720609834514,-500.0,0.00013698,2]
[331662901,1720609834523,-500.0,0.00013698,2]
[331662902,1720609834533,-500.0,0.00013698,2]
[331662903,1720609834543,-629.62347709,0.00013698,2]
[331662904,1720609834552,-500.0,0.00013698,2]
[331662905,1720609834562,-500.0,0.00013698,2]
[331662906,1720609834572,-500.0,0.00013698,2]
[331662907,1720609834581,-500.0,0.00013698,2]
[331662908,1720609834591,-500.0,0.00013698,2]
[331662909,1720609834601,-500.0,0.00013698,2]
[331662910,1720609834610,-500.0,0.00013698,2]
[331662911,1720609834619,-500.0,0.00013698,2]
[331662912,1720609834629,-500.0,0.00013698,2]
[331662913,1720609834640,-500.0,0.00013698,2]
[331662914,1720609834649,-500.0,0.00013698,2]
[331662915,1720609834659,-500.0,0.00013698,2]
[331662916,1720609834668,-500.0,0.00013698,2]
[331662917,1720609834677,-537.39,0.00013698,2]
[331662918,1720609834687,-500.0,0.00013698,2]
[331662919,1720609834697,-500.0,0.00013698,2]
[331662920,1720609834707,-500.0,0.00013698,2]
[331662921,1720609834716,-500.0,0.00013698,2]
[331662922,1720609834726,-500.0,0.00013698,2]
[331662923,1720609834736,-500.0,0.00013698,2]
[331662924,1720609834745,-500.0,0.00013698,2]
[331662925,1720609834755,-500.0,0.00013698,2]
[331662926,1720609834764,-500.0,0.00013698,2]
[331662927,1720609834773,-500.0,0.00013698,2]
[331662928,1720609834782,-500.0,0.00013698,2]
[331662929,1720609834792,-500.0,0.00013698,2]
[331662930,1720609834801,-500.0,0.00013698,2]
[331662931,1720609834811,-500.0,0.00013698,2]
[331662932,1720609834820,-500.0,0.00013698,2]
[331662933,1720609834829,-500.0,0.00013698,2]
[331662934,1720609834838,-500.0,0.00013698,2]
[331662935,1720609834847,-500.0,0.00013698,2]
[331662936,1720609834856,-500.0,0.00013698,2]
[331662937,1720609834866,-500.0,0.00013698,2]
[331662938,1720609834875,-500.0,0.00013698,2]
[331662939,1720609834885,-500.0,0.00013698,2]
[331662940,1720609834894,-613.66,0.00013698,2]
[331662941,1720609834903,-655.95,0.00013698,2]
[331662942,1720609834913,-500.0,0.00013698,2]
[331662943,1720609834923,-500.0,0.00013698,2]
[331662944,1720609834933,-500.0,0.00013698,2]
[331662945,1720609834943,-500.0,0.00013698,2]
[331662946,1720609834953,-500.0,0.00013698,2]
[331662947,1720609834964,-500.0,0.00013698,2]
[331662948,1720609834974,-500.0,0.00013698,2]
[331662949,1720609834984,-501.09,0.00013698,2]
[331662950,1720609834993,-500.0,0.00013698,2]
[331662951,1720609835005,-500.0,0.00013698,2]
[331662952,1720609835015,-500.0,0.00013698,2]
[331662953,1720609835025,-500.0,0.00013698,2]
[331662954,1720609835038,-500.0,0.00013698,2]
[331662955,1720609835048,-500.0,0.00013698,2]
[331662956,1720609835058,-500.0,0.00013698,2]
[331662957,1720609835067,-500.0,0.00013698,2]
[331662958,1720609835076,-500.0,0.00013698,2]
[331662959,1720609835086,-500.0,0.00013698,2]
[331662960,1720609835095,-500.0,0.00013698,2]
[331662961,1720609835105,-500.0,0.00013698,2]
[331662962,1720609835114,-589.99,0.00013698,2]
[331662963,1720609835124,-500.0,0.00013698,2]
[331662964,1720609835134,-500.0,0.00013698,2]
[331662965,1720609835143,-500.0,0.00013698,2]
[331662966,1720609835153,-500.0,0.00013698,2]
[331662967,1720609835162,-500.0,0.00013698,2]
[331662968,1720609835172,-500.0,0.00013698,2]
[331662969,1720609835182,-500.0,0.00013698,2]
[331662970,1720609835191,-500.0,0.00013698,2]
[331662971,1720609835201,-500.0,0.00013698,2]
[331662972,1720609835213,-500.0,0.00013698,2]
[331662973,1720609835223,-612.16,0.00013698,2]
[331662974,1720609835233,-500.0,0.00013698,2]
[331662975,1720609835242,-500.0,0.00013698,2]
[331662976,1720609835253,-259.99526322,0.00013698,2]
[331662977,1720609835262,-500.0,0.00013698,2]
[331662978,1720609835272,-500.0,0.00013698,2]
[331662979,1720609835282,-564.83,0.00013698,2]
[331662980,1720609835292,-500.0,0.00013698,2]
[331662981,1720609835302,-500.0,0.00013698,2]
[331662982,1720609835311,-500.0,0.00013698,2]
[331662983,1720609835321,-500.0,0.00013698,2]
[331662984,1720609835331,-423.54127618,0.00013698,2]
[331662985,1720609835341,-500.0,0.00013698,2]
[331662986,1720609835350,-500.0,0.00013698,2]
[331662987,1720609835360,-439.94855723,0.00013698,2]
[331662988,1720609835370,-500.0,0.00013698,2]
[331662989,1720609835380,-500.0,0.00013698,2]
[331662990,1720609835390,-636.48,0.00013698,2]
[331662991,1720609835399,-500.0,0.00013698,2]
[331662992,1720609835409,-500.0,0.00013698,2]
[331662993,1720609835418,-500.0,0.00013698,2]
[331662994,1720609835428,-500.0,0.00013698,2]
[331662995,1720609835437,-500.0,0.00013698,2]
[331662996,1720609835446,-500.0,0.00013698,2]
[331662997,1720609835456,-500.0,0.00013698,2]
[331662998,1720609835465,-511.07586242,0.00013698,2]
[331662999,1720609835475,-500.0,0.00013698,2]
[331663000,1720609835484,-500.0,0.00013698,2]
[331663001,1720609835494,-500.0,0.00013698,2]
[331663002,1720609835504,-500.0,0.00013698,2]
[331663003,1720609835514,-500.0,0.00013698,2]
[331663004,1720609835523,-500.0,0.00013698,2]
[331663005,1720609835533,-500.0,0.00013698,2]
[331663006,1720609835543,-500.0,0.00013698,2]
[331663007,1720609835552,-500.0,0.00013698,2]
[331663008,1720609835562,-500.0,0.00013698,2]
[331663009,1720609835571,-501.85,0.00013698,2]
[331663010,1720609835580,-526.86,0.00013698,2]
[331663011,1720609835589,-650.07,0.00013698,2]
[331663012,1720609835599,-500.0,0.00013698,2]
[331663013,1720609835608,-667.58,0.00013698,2]
[331663014,1720609835617,-500.0,0.00013698,2]
[331663015,1720609835626,-500.0,0.00013698,2]
[331663016,1720609835636,-500.0,0.00013698,2]
[331663017,1720609835708,-984.79,0.00013698,2]
[331663018,1720609835719,-500.0,0.00013698,2]
[331663019,1720609835729,-545.47,0.00013698,2]
[331663020,1720609835738,-500.0,0.00013698,2]
[331663021,1720609835748,-500.0,0.00013698,2]
[331663022,1720609835758,-500.0,0.00013698,2]
[331663023,1720609835768,-512.7,0.00013698,2]
[331663024,1720609835778,-500.0,0.00013698,2]
[331663025,1720609835787,-500.0,0.00013698,2]
[331663026,1720609835797,-500.0,0.00013698,2]
[331663027,1720609835806,-656.39,0.00013698,2]
[331663028,1720609835816,-500.0,0.00013698,2]
[331663029,1720609835825,-500.0,0.00013698,2]
[331663030,1720609835834,-757.19,0.00013698,2]
[331663031,1720609835844,-500.0,0.00013698,2]
[331663032,1720609835854,-500.0,0.00013698,2]
[331663033,1720609835863,-500.0,0.00013698,2]
[331663034,1720609835872,-894.82,0.00013698,2]
[331663035,1720609835882,-500.0,0.00013698,2]
[331663036,1720609835891,-607.99,0.00013698,2]
[331663037,1720609835901,-552.52,0.00013698,2]
[331663038,1720609835911,-500.0,0.00013698,2]
[331663039,1720609835920,-689.27,0.00013698,2]
[331663040,1720609835929,-811.58,0.00013698,2]
[331663041,1720609835939,-560.93,0.00013698,2]
[331663042,1720609835948,-500.0,0.00013698,2]
[331663043,1720609835958,-500.0,0.00013698,2]
[331663044,1720609835968,-500.0,0.00013698,2]
[331663045,1720609835977,-500.0,0.00013698,2]
[331663046,1720609835987,-500.0,0.00013698,2]
[331663047,1720609835996,-200.0,0.00013699,2]
[331663048,1720609836008,-569.07,0.00013699,2]
[331663049,1720609836018,-250.0,0.00013699,2]
[331663050,1720609836027,-500.0,0.00013751,2]
[331663051,1720609836037,-500.0,0.00013751,2]
[331663052,1720609836047,-500.0,0.00013751,2]
[331663053,1720609836056,-500.0,0.00013751,2]
[331663054,1720609836065,-500.0,0.00013751,2]
[331663055,1720609836075,-500.0,0.00013751,2]
[331663056,1720609836085,-500.0,0.00013751,2]
[331663057,1720609836094,-678.56,0.00013751,2]
[331663058,1720609836104,-500.0,0.00013751,2]
[331663059,1720609836113,-595.55,0.00013751,2]
[331663060,1720609836122,-1410.4,0.00013751,2]
[331663061,1720609836131,-1179.87,0.00013751,2]
[331663062,1720609836141,-500.0,0.00013751,2]
[331663063,1720609836151,-900.15,0.00013751,2]
[331663064,1720609836161,-2369.07,0.00013751,2]
[331663065,1720609836170,-500.0,0.00013751,2]
[331663066,1720609836180,-916.05,0.00013751,2]
[331663067,1720609836190,-500.0,0.00013751,2]
[331663068,1720609836199,-500.0,0.00013751,2]
[331663069,1720609836211,-500.0,0.00013751,2]
[331663070,1720609836221,-500.0,0.00013751,2]
[331663071,1720609836231,-534.7,0.00013751,2]
[331663072,1720609836240,-598.18,0.00013751,2]
[331663073,1720609836251,-500.0,0.00013751,2]
[331663074,1720609836260,-624.3,0.00013751,2]
[331663075,1720609836270,-500.0,0.00013751,2]
[331663076,1720609836279,-500.0,0.00013751,2]
[331663077,1720609836288,-500.0,0.00013751,2]
[331663078,1720609836297,-775.85,0.00013751,2]
[331663079,1720609836307,-500.0,0.00013751,2]
[331663080,1720609836316,-500.0,0.00013751,2]
[331663081,1720609836326,-500.0,0.00013751,2]
[331663082,1720609836335,-501.29,0.00013751,2]
[331663083,1720609836344,-258.15254213,0.00013751,2]
[331663084,1720609836353,-544.47,0.00013751,2]
[331663085,1720609836362,-500.0,0.00013751,2]
[331663086,1720609836372,-500.0,0.00013751,2]
[331663087,1720609836382,-500.0,0.00013751,2]
[331663088,1720609836391,-4173.73,0.00013751,2]
[331663089,1720609836400,-500.0,0.00013751,2]
[331663090,1720609836409,-500.0,0.00013751,2]
[331663091,1720609836418,-515.61,0.00013751,2]
[331663092,1720609836427,-500.0,0.00013751,2]
[331663093,1720609836436,-595.56,0.00013751,2]
[331663094,1720609836446,-500.0,0.00013751,2]
[331663095,1720609836455,-544.06,0.00013751,2]
[331663096,1720609836464,-500.0,0.00013751,2]
[331663097,1720609836473,-500.0,0.00013751,2]
[331663098,1720609836482,-500.0,0.00013751,2]
[331663099,1720609836492,-2389.76,0.00013751,2]
[331663100,1720609836502,-500.0,0.00013751,2]
[331663101,1720609836511,-500.0,0.00013751,2]
[331663102,1720609836520,-500.0,0.00013751,2]
[331663103,1720609836530,-500.0,0.00013752,2]
[331663104,1720609836539,-500.0,0.00013752,2]
[331663105,1720609836549,-500.0,0.00013752,2]
[331663106,1720609836558,-500.0,0.00013752,2]
[331663107,1720609836568,-500.0,0.00013752,2]
[331663108,1720609836577,-500.0,0.00013752,2]
[331663109,1720609836586,-500.0,0.00013752,2]
[331663110,1720609836596,-500.0,0.00013752,2]
[331663111,1720609836606,-500.0,0.00013752,2]
[331663112,1720609836615,-500.0,0.00013752,2]
[331663113,1720609836625,-500.0,0.00013752,2]
[331663114,1720609836634,-454.97641826,0.00013752,2]
[331663115,1720609836644,-500.0,0.00013752,2]
[331663116,1720609836653,-500.0,0.00013752,2]
[331663117,1720609836663,-640.54362876,0.00013752,2]
[331663118,1720609836672,-500.0,0.00013752,2]
[331663119,1720609836681,-500.0,0.00013752,2]
[331663120,1720609836690,-500.0,0.00013752,2]
[331663121,1720609836699,-500.0,0.00013752,2]
[331663122,1720609836708,-500.0,0.00013752,2]
[331663123,1720609836717,-500.0,0.00013752,2]
[331663124,1720609836726,-500.0,0.00013752,2]
[331663125,1720609836735,-500.0,0.00013752,2]
[331663126,1720609836744,-500.0,0.00013752,2]
[331663127,1720609836754,-500.0,0.00013752,2]
[331663128,1720609836763,-500.0,0.00013752,2]
[331663129,1720609836772,-500.0,0.00013752,2]
[331663130,1720609836781,-500.0,0.00013752,2]
[331663131,1720609836790,-500.0,0.00013752,2]
[331663132,1720609836798,-500.0,0.00013752,2]
[331663133,1720609836807,-500.0,0.00013752,2]
[331663134,1720609836817,-500.0,0.00013752,2]
[331663135,1720609836826,-500.0,0.00013752,2]
[331663136,1720609836835,-500.0,0.00013752,2]
[331663137,1720609836845,-500.0,0.00013752,2]
[331663138,1720609836854,-500.0,0.00013752,2]
[331663139,1720609836862,-500.0,0.00013752,2]
[331663140,1720609836872,-500.0,0.00013752,2]
[331663141,1720609836880,-562.86,0.00013752,2]
[331663142,1720609836889,-500.0,0.00013752,2]
[331663143,1720609836898,-500.0,0.00013752,2]
[331663144,1720609836907,-500.0,0.00013752,2]
[331663145,1720609836916,-500.0,0.00013752,2]
[331663146,1720609836925,-166.93787771,0.00013752,2]
[331663147,1720609836934,-565.49,0.00013752,2]
[331663148,1720609836943,-500.0,0.00013752,2]
[331663149,1720609836953,-500.0,0.00013752,2]
[331663150,1720609836962,-500.0,0.00013752,2]
[331663151,1720609836972,-500.0,0.00013752,2]
[331663152,1720609836981,-500.0,0.00013752,2]
[331663153,1720609836991,-500.0,0.00013752,2]
[331663154,1720609837002,-500.0,0.00013752,2]
[331663155,1720609837012,-211.67,0.00013752,2]
[331663156,1720609837022,-500.0,0.00013752,2]
[331663157,1720609837031,-500.0,0.00013752,2]
[331663158,1720609837040,-500.0,0.00013752,2]
[331663159,1720609837049,-500.0,0.00013752,2]
[331663160,1720609837058,-500.0,0.00013752,2]
[331663161,1720609837067,-500.0,0.00013752,2]
[331663162,1720609837077,-507.92,0.00013752,2]
[331663163,1720609837086,-500.0,0.00013752,2]
[331663164,1720609837095,-500.0,0.00013752,2]
[331663165,1720609837105,-500.0,0.00013752,2]
[331663166,1720609837114,-500.0,0.00013752,2]
[331663167,1720609837123,-500.0,0.00013752,2]
[331663168,1720609837132,-500.0,0.00013752,2]
[331663169,1720609837141,-500.0,0.00013752,2]
[331663170,1720609837150,-500.0,0.00013752,2]
[331663171,1720609837159,-500.0,0.00013752,2]
[331663172,1720609837168,-500.0,0.00013752,2]
[331663173,1720609837178,-500.0,0.00013752,2]
[331663174,1720609837187,-500.0,0.00013752,2]
[331663175,1720609837196,-838.56,0.00013752,2]
[331663176,1720609837207,-500.0,0.00013752,2]
[331663177,1720609837216,-567.79,0.00013752,2]
[331663178,1720609837226,-500.0,0.00013752,2]
[331663179,1720609837236,-500.0,0.00013752,2]
[331663180,1720609837245,-500.0,0.00013752,2]
[331663181,1720609837256,-500.0,0.00013752,2]
[331663182,1720609837265,-500.0,0.00013752,2]
[331663183,1720609837275,-500.0,0.00013752,2]
[331663184,1720609837284,-500.0,0.00013752,2]
[331663185,1720609837293,-500.0,0.00013752,2]
[331663186,1720609837302,-500.0,0.00013752,2]
[331663187,1720609837312,-500.0,0.00013752,2]
[331663188,1720609837321,-212.16781628,0.00013752,2]
[331663189,1720609837330,-500.0,0.00013752,2]
[331663190,1720609837339,-500.0,0.00013752,2]
[331663191,1720609837349,-547.72,0.00013752,2]
[331663192,1720609837358,-500.0,0.00013752,2]
[331663193,1720609837368,-500.0,0.00013752,2]
[331663194,1720609837377,-500.0,0.00013752,2]
[331663195,1720609837386,-513.87,0.00013752,2]
[331663196,1720609837396,-500.0,0.00013752,2]
[331663197,1720609837405,-500.0,0.00013752,2]
[331663198,1720609837415,-500.0,0.00013752,2]
[331663199,1720609837424,-500.0,0.00013752,2]
[331663200,1720609837434,-626.51,0.00013752,2]
[331663201,1720609837444,-500.0,0.00013752,2]
[331663202,1720609837454,-500.0,0.00013752,2]
[331663203,1720609837463,-500.0,0.00013752,2]
[331663204,1720609837472,-562.23,0.00013752,2]
[331663205,1720609837481,-500.0,0.00013752,2]
[331663206,1720609837491,-500.0,0.00013752,2]
[331663207,1720609837501,-548.35924474,0.00013752,2]
[331663208,1720609837511,-500.0,0.00013752,2]
[331663209,1720609837521,-500.0,0.00013752,2]
[331663210,1720609837530,-655.96,0.00013752,2]
[331663211,1720609837539,-619.27,0.00013752,2]
[331663212,1720609837549,-500.0,0.00013752,2]
[331663213,1720609837558,-497.57044136,0.00013752,2]
[331663214,1720609837567,-500.0,0.00013752,2]
[331663215,1720609837577,-520.49,0.00013752,2]
[331663216,1720609837586,-170.68461021,0.00013752,2]
[331663217,1720609837597,-500.0,0.00013752,2]
[331663218,1720609837606,-500.0,0.00013752,2]
[331663219,1720609837615,-500.0,0.00013752,2]
[331663220,1720609837624,-500.0,0.00013752,2]
[331663221,1720609837633,-500.0,0.00013752,2]
[331663222,1720609837643,-500.0,0.00013752,2]
[331663223,1720609837652,-545.04425745,0.00013752,2]
[331663224,1720609837661,-500.0,0.00013752,2]
[331663225,1720609837670,-500.0,0.00013752,2]
[331663226,1720609837679,-500.0,0.00013752,2]
[331663227,1720609837689,-500.0,0.00013752,2]
[331663228,1720609837698,-500.0,0.00013752,2]
[331663229,1720609837708,-500.0,0.00013752,2]
[331663230,1720609837717,-500.0,0.00013752,2]
[331663231,1720609837727,-500.0,0.00013752,2]
[331663232,1720609837737,-500.0,0.00013752,2]
[331663233,1720609837746,-365.48582828,0.00013752,2]
[331663234,1720609837757,-500.0,0.00013752,2]
[331663235,1720609837767,-500.0,0.00013752,2]
[331663236,1720609837777,-500.0,0.00013752,2]
[331663237,1720609837786,-500.0,0.00013752,2]
[331663238,1720609837796,-500.0,0.00013752,2]
[331663239,1720609837807,-500.0,0.00013752,2]
[331663240,1720609837817,-500.0,0.00013752,2]
[331663241,1720609837827,-500.0,0.00013752,2]
[331663242,1720609837836,-500.0,0.00013752,2]
[331663243,1720609837846,-500.0,0.00013752,2]
[331663244,1720609837855,-500.0,0.00013752,2]
[331663245,1720609837866,-500.0,0.00013752,2]
[331663246,1720609837876,-500.0,0.00013752,2]
[331663247,1720609837885,-500.0,0.00013752,2]
[331663248,1720609837894,-625.84,0.00013752,2]
[331663249,1720609837904,-1418.8,0.00013752,2]
[331663250,1720609837914,-500.0,0.00013752,2]
[331663251,1720609837924,-500.0,0.00013752,2]
[331663252,1720609837933,-500.0,0.00013752,2]
[331663253,1720609837943,-500.0,0.00013752,2]
[331663254,1720609837952,-857.87,0.00013752,2]
[331663255,1720609837962,-500.0,0.00013752,2]
[331663256,1720609837972,-500.0,0.00013752,2]
[331663257,1720609837982,-500.0,0.00013752,2]
[331663258,1720609837993,-500.0,0.00013752,2]
[331663259,1720609838003,-439.83341783,0.00013752,2]
[331663260,1720609838015,-500.0,0.00013752,2]
[331663261,1720609838025,-500.0,0.00013752,2]
[331663262,1720609838035,-500.0,0.00013752,2]
[331663263,1720609838044,-171.44142629,0.00013752,2]